Cogmind - Beta 13 @@@ ROGUE MODE // 2024.05.05 @ 21:38:18 Player: Cheeriohz Result: Core destroyed Performance ------------- Evolutions (3) 1500 Regions Visited (13) 2600 Robots Destroyed (190) 950 Value Destroyed (5590) 5590 Prototype IDs (19) 380 Alien Tech Used (0) 0 Bonus (2459) 2459 TOTAL SCORE: 13479 Bonus ------- High Alert Combat Kills 513 Follower Combat Kills 397 Entered Garrisons 400 Met Imprinter 300 Destroyed Z-Imprinter 1000 Friendly Fire -151 Cogmind --------- Core Integrity 0/700 Matter 280/300 Energy 100/100 System Corruption 0% Temperature Critical (504) Movement Core (350) Ox6 Location -7/Deep Caves Parts ------- > --- POWER (2) -------- Zionite Light DM Reactor Zionite Light DM Reactor > --- PROPULSION (4) --- Assembled Alloy Leg > --- UTILITY (5) ------ GOLEM Unit > --- WEAPON (2) ------- (None) > --- INVENTORY (5) ---- Improved Deuterium Engine High-capacity Matter Pod (173) Riot Gun Improved EM Pulse Cannon RU-N14's Throwing Claymores (3) Peak State ------------ > --- POWER ------------ Zionite Light DM Reactor Zionite Light DM Reactor > --- PROPULSION ------- Carbon-fiber Leg Improved Carbon-fiber Leg > --- UTILITY ---------- Experimental Heat Sink Huge Storage Unit Zionite Weapon Casing Zionite Weapon Casing > --- WEAPON ----------- Advanced Plasma Cannon RU-N14's Throwing Claymores > --- INVENTORY -------- Improved Deuterium Engine Enhanced Nuclear Core High-capacity Storage Unit Compact Battery High-capacity Matter Pod Improved Sensor Array Improved Transmission Jammer Hacking Drone Bay Riot Gun Improved EM Pulse Cannon Cooled Particle Cannon Mini Assault Cannon Mini Assault Cannon Enhanced Gauss Cannon Heavy Shock Bomb Launcher Heavy Missile Launcher Plasma Cutter RU-N14's Throwing Claymores RU-N14's Throwing Claymores Power Maul [Rating: 65] Favorites ----------- Power Enhanced Nuclear Core Engine Heavy Ion Engine Power Core Enhanced Nuclear Core Reactor Zionite Light DM Reactor Propulsion Improved Titanium Leg Treads Light Treads Leg Improved Titanium Leg Wheel Wheel Utility Large Storage Unit Device Improved Sensor Array Storage Large Storage Unit Processor Improved Signal Interpreter Hackware Hacking Suite Protection Improved Light Armor Plating Weapon Mini Assault Cannon Energy Gun Heavy Particle Gun Energy Cannon Advanced Plasma Cannon Ballistic Gun Assault Rifle Ballistic Cannon Mini Assault Cannon Launcher Heavy Shock Bomb Launcher Special Weapon RU-N14's Throwing Claymores Impact Weapon Heavy Flail Build | -11 -10 -10 -9 -9 -9 -8 -8 -8 -7 -7 -7 -7 -7 ------- Run | Yrd Mat Min Mat Sto Gar Mat Gar Mat Fac Low Low Zio Dee Slots Evolved 6 | . . . 2 . . 2 . . 2 . . . . Power 1 | . . . . . . . . . 1 . . . . Propulsion 2 | . . . 1 . . 1 . . . . . . . Utility 3 | . . . 1 . . 1 . . 1 . . . . Weapon . | . . . . . . . . . . . . . . Parts Attached 252 | 1 12 9 21 31 5 18 15 42 52 2 10 9 25 Power 16 | . . . 3 . . 1 . 1 6 . . . 5 Engine 7 | . . . 3 . . 1 . 1 2 . . . . Core 4 | . . . . . . . . . 4 . . . . Reactor 5 | . . . . . . . . . . . . . 5 Propulsion 54 | . 1 3 6 6 . 8 2 19 6 . . . 3 Treads 39 | . . 2 6 6 . 8 2 15 . . . . . Leg 14 | . 1 . . . . . . 4 6 . . . 3 Wheel 1 | . . 1 . . . . . . . . . . . Hover . | . . . . . . . . . . . . . . Flight . | . . . . . . . . . . . . . . Utility 83 | 1 3 1 3 9 . 5 4 9 26 1 6 5 10 Device 40 | 1 . . 1 3 . 3 1 2 20 1 4 1 3 Storage 11 | . 2 1 . . . . 1 2 1 . . 2 2 Processor 4 | . . . . . . 1 . . 2 . . 1 . Hackware 1 | . . . . . . . 1 . . . . . . Protection 27 | . 1 . 2 6 . 1 1 5 3 . 2 1 5 Artifact . | . . . . . . . . . . . . . . Weapon 99 | . 8 5 9 16 5 4 9 13 14 1 4 4 7 Energy Gun 7 | . . . . . 1 . . 5 1 . . . . Energy Cannon 12 | . . . . . . . . 2 5 1 2 1 1 Ballistic Gun 35 | . 4 2 7 10 1 3 4 3 1 . . . . Ballistic Cannon 6 | . . . . . . . 1 . 4 . . . 1 Launcher 21 | . 4 3 1 2 . 1 1 2 3 . 2 . 2 Special Weapon 9 | . . . . 4 . . . . . . . 2 3 Impact Weapon 9 | . . . 1 . 3 . 3 1 . . . 1 . Slashing Weapon . | . . . . . . . . . . . . . . Piercing Weapon . | . . . . . . . . . . . . . . Special Melee Weapon . | . . . . . . . . . . . . . . Unidentified Prototypes 13 | . . . 1 . . 1 . 2 5 . . 1 3 Parts Lost 28 | . . 4 1 . . 6 1 1 . . . . 15 Power 3 | . . 1 . . . 1 . . . . . . 1 Propulsion 11 | . . 1 . . . 2 1 . . . . . 7 Utility 13 | . . 1 1 . . 3 . 1 . . . . 7 Weapon 1 | . . 1 . . . . . . . . . . . Highest Loss Streak 13 | . . 2 1 . . 3 1 1 . . . . 13 To Critical Strikes . | . . . . . . . . . . . . . . Average Slot Usage (%) 96 | . 100 97 99 99 100 93 99 99 99 100 100 97 73 Engine 6 | . 14 12 11 11 11 9 9 9 5 . . . . Core 5 | . . . . . . . . . 9 15 15 15 6 Treads 14 | . . 26 33 33 33 34 35 30 . . . . . Leg 15 | . 28 . . . . . . 5 29 30 30 30 15 Device 8 | . 2 . 11 5 22 13 3 . 12 7 12 17 8 Storage 9 | . 14 20 13 11 11 9 13 9 7 7 7 7 7 Processor 4 | . . . . . . 2 9 9 7 15 9 2 . Hackware 1 | . . . . . . . 4 9 1 . . . . Protection 8 | . 11 7 8 16 . 5 5 8 7 7 7 7 12 Energy Gun 1 | . . . . . 7 2 . 9 . . . . . Energy Cannon 3 | . . . . . . . . 4 8 7 6 4 1 Ballistic Gun 8 | . 26 25 21 20 9 14 13 4 . . . . . Ballistic Cannon 2 | . . . . . . . . . 5 7 7 7 2 Special Weapon 1 | . . . . 1 . . . . . . . 1 8 Naked Turns 5 | . . . . . . . . . . . . . 5 Heaviest Build 154 | 15 33 33 38 46 46 47 42 105 120 80 91 154 141 Greatest Support 99 | 20 20 40 60 69 69 99 99 91 80 78 78 78 78 Greatest Overweight (x) 6 | . 1 2 . . . . . 2 1 1 1 1 6 Average Overweight (x) . | . . . . . . . . . . . . . 2 Largest Inventory Capacity 25 | 8 15 15 15 15 15 15 15 25 25 20 20 25 25 Average Capacity 17 | 8 12 15 15 15 15 15 15 16 20 20 20 22 20 Most Carried 25 | 8 15 15 15 15 15 15 15 25 25 20 20 25 25 Average Carried 17 | 7 11 14 14 14 15 14 14 15 20 20 19 21 16 Final Capacity 25 | 8 15 15 15 15 15 15 15 25 20 20 20 25 5 Final Carried 25 | 8 15 15 15 15 15 15 15 25 20 20 20 25 5 Class Distribution -------------------- 78% | Mutant 18% | Scavenger-Mutant Dominant Class ---------------- Mutant | -10/Materials Mutant | -10/Mines Scavenger-Mutant | -9/Materials Scavenger-Mutant | -9/Storage Mutant | -9/Garrison Mutant | -8/Materials Mutant | -8/Garrison Mutant | -8/Materials Mutant | -7/Factory Mutant | -7/Lower Caves Mutant | -7/Lower Caves Mutant | -7/Zion Scavenger-Mutant | -7/Deep Caves Resources | -11 -10 -10 -9 -9 -9 -8 -8 -8 -7 -7 -7 -7 -7 ----------- Run | Yrd Mat Min Mat Sto Gar Mat Gar Mat Fac Low Low Zio Dee Matter Collected 5880 | 228 298 93 705 782 80 567 534 1004 755 91 173 64 506 Remotely 210 | . . . . . . . . . . . 105 64 41 Salvage Created 7539 | 93 423 146 592 758 213 902 711 1604 1167 126 360 . 444 Parts 422 | 9 37 11 35 58 10 50 28 91 64 3 12 . 14 Haulers Intercepted 20 | . 1 . 3 4 . 4 . 6 2 . . . . Recyclers Shooed 7 | . . . 1 1 . 1 . 1 3 . . . . Parts Field Recycled . | . . . . . . . . . . . . . . Retrieved Matter . | . . . . . . . . . . . . . . Parts Self-Destructed 11 | . . . . . . . . . . 6 5 . . Prevented 9 | . . . . . . . . . . . 9 . . Kills | -11 -10 -10 -9 -9 -9 -8 -8 -8 -7 -7 -7 -7 -7 ------- Run | Yrd Mat Min Mat Sto Gar Mat Gar Mat Fac Low Low Zio Dee Combat Hostiles Destroyed 145 | . 11 16 10 12 6 13 13 28 23 2 7 . 4 Guns 76 | . 10 2 6 9 6 11 12 20 . . . . . Cannons 19 | . . . . . . . . 2 15 2 . . . AOE 46 | . 1 14 4 3 . 2 1 6 8 . 5 . 2 Classes Destroyed 18 | 2 5 2 2 . . 1 1 . 2 1 . . 2 Worker 9 | . 2 . 1 2 . 1 . 1 2 . . . . Builder 6 | . . . 1 . . 2 . 1 2 . . . . Tunneler 2 | 1 1 . . . . . . . . . . . . Hauler 20 | . 1 . 3 4 . 4 . 6 2 . . . . Recycler 10 | 1 . . 1 1 . 2 . 3 2 . . . . Mechanic 1 | . . . . . . 1 . . . . . . . Operator 3 | . 1 . . 1 . 1 . . . . . . . Watcher 1 | . . . . . . . . . 1 . . . . Swarmer 39 | . 6 6 4 3 2 3 . 7 4 2 2 . . Grunt 53 | . 5 2 2 3 4 3 11 13 6 . 4 . . Duelist 1 | . . . . . . . 1 . . . . . . Sentry 31 | . . . 4 6 . 6 1 8 5 . 1 . . Hunter 3 | . . . . . . 1 . . 2 . . . . Programmer 6 | . . . . . . . . . 6 . . . . Z-Light 2 | . . . . . . . . . . . . . 2 Packrat 1 | . . . . . . . . . . 1 . . . Samaritan 1 | . . . . . . . . . . 1 . . . Assembled 8 | . . 8 . . . . . . . . . . . Golem 1 | . . . . . . . . . . . . . 1 Guerrilla 1 | . . 1 . . . . . . . . . . . Best Kill Streak 10 | 2 4 8 5 5 4 10 4 7 7 1 4 . 2 Combat Bots Only 8 | . 3 8 5 3 4 4 4 6 5 1 4 . 2 Max Kills in Single Turn 3 | 1 1 3 2 3 2 2 1 3 3 1 1 . 1 Gunslinging 1 | . . . . 1 1 . . . . . . . . Exploded 3 | . 1 3 2 2 . 1 1 2 3 . 1 . 1 Melee . | . . . . . . . . . . . . . . Uniques/NPCs Destroyed 1 | . . . . . . . . . . . . . 1 Z-Imprinter (-7/Deep Caves) Combat | -11 -10 -10 -9 -9 -9 -8 -8 -8 -7 -7 -7 -7 -7 -------- Run | Yrd Mat Min Mat Sto Gar Mat Gar Mat Fac Low Low Zio Dee Hostile Shots Fired 922 | . 51 50 53 89 4 120 51 102 238 6 47 . 111 Missed 254 | . 13 17 16 14 2 26 16 28 77 2 20 . 23 Damage Taken 9709 | . 452 470 487 929 33 1328 615 1071 1143 52 212 . 2917 Core 1351 | . 57 66 72 101 . 153 29 83 116 . 17 . 657 Absorbed by Shields 816 | . . . . 170 . . . . 443 15 36 . 152 Redirected to Shielding 55 | . . . . . . . . . . . . . 55 Ignored by Resistances 72 | . . . . . . . . . 10 . 62 . . Regen/Repaired (Parts) 208 | . . . . 57 . . . 151 . . . . . Core Remaining (%) 64 | 100 . 50 . . 56 . . 51 . . . . . Volleys Fired 545 | 3 36 19 38 53 10 68 48 100 94 30 10 . 36 Largest 2 | 2 2 2 2 2 2 2 2 2 2 1 1 . 2 Hottest 178 | 40 40 40 46 46 79 79 50 160 178 98 98 . 98 Shots Fired 929 | 6 65 27 74 103 19 130 92 186 136 30 10 1 50 Gun 646 | 6 58 16 72 100 19 124 89 162 . . . . . Cannon 211 | . . . . . . . . 17 129 30 2 1 32 Launcher 67 | . 7 11 2 3 . 6 3 7 7 . 8 . 13 Special 5 | . . . . . . . . . . . . . 5 Kinetic 624 | 6 58 16 72 100 12 93 89 128 35 . . . 15 Thermal 233 | . . . . . 7 31 . 51 94 30 2 1 17 Explosive 49 | . 7 11 2 3 . 6 3 7 5 . . . 5 Electromagnetic 23 | . . . . . . . . . 2 . 8 . 13 Robot Hit Streak 36 | 4 9 3 17 36 10 20 15 28 8 4 3 . 3 Robot Miss Streak 6 | 1 5 1 3 2 1 3 3 3 4 2 1 . 6 Penetration Max . | . . . . . . . . . . . . . . Secondary Targets 10 | . . 1 1 2 2 . 2 2 . . . . . Max Gunslinging Chain 1 | . . 1 1 1 1 . 1 1 . . . . . Shots Hit Robots 599 | 4 34 17 54 85 14 101 68 131 62 8 3 . 18 Core Hits 320 | 3 24 35 22 32 7 35 32 67 42 3 6 . 12 Critical Kills 2 | . . . 1 . . . 1 . . . . . . Critical Parts Destroyed 3 | . . . 1 . . 1 1 . . . . . . Critical Strikes 19 | . . . 2 . 2 5 2 3 3 . . . 2 Burn 8 | . . . . . 2 4 . 2 . . . . . Destroy 6 | . . . 2 . . 1 2 1 . . . . . Blast 5 | . . . . . . . . . 3 . . . 2 Melee Attacks 28 | . . . 6 . 6 2 13 1 . . . . . Impact 28 | . . . 6 . 6 2 13 1 . . . . . Slashing . | . . . . . . . . . . . . . . Piercing . | . . . . . . . . . . . . . . Sneak Attacks 1 | . . . . . . 1 . . . . . . . Combat Hostiles . | . . . . . . . . . . . . . . Follow-up Attacks . | . . . . . . . . . . . . . . Damage Inflicted 16174 | 52 534 1177 1144 1541 219 1832 1678 3094 2882 295 578 . 1148 Guns 7693 | 52 438 122 856 1357 219 1346 1074 2229 . . . . . Cannons 2508 | . . . . . . . . 222 1702 295 . . 289 Explosions 5363 | . 90 1055 288 184 . 436 177 643 1176 . 578 . 736 Melee 477 | . . . . . . 50 427 . . . . . . Ramming 10 | . 6 . . . . . . . 4 . . . . Kinetic 7569 | 52 438 122 856 1357 133 1102 1074 1653 628 . . . 154 Thermal 2658 | . . . . . 86 244 . 798 1100 295 . . 135 Explosive 4145 | . 90 1055 288 184 . 436 177 643 960 . . . 312 Electromagnetic 1192 | . . . . . . . . . 190 . 578 . 424 Impact 477 | . . . . . . 50 427 . . . . . . Slashing 123 | . . . . . . . . . . . . . 123 Piercing . | . . . . . . . . . . . . . . Highest Corruption 4 | . . . . . . . . . 4 4 4 4 . Average Corruption 3 | . . . . . . . . . 3 4 4 4 . Corruption Purged . | . . . . . . . . . . . . . . Corruption Blocked . | . . . . . . . . . . . . . . Effects 65 | . . . . . . . . . 34 12 17 2 . Message Errors 14 | . . . . . . . . . 4 4 6 . . Matter Fused 16 | . . . . . . . . . 8 4 4 . . Heat Flow Errors 7 | . . . . . . . . . 4 . 3 . . Energy Discharges 9 | . . . . . . . . . 7 . 2 . . Data Loss (minor) 8 | . . . . . . . . . 4 2 2 . . Data Loss (major) 5 | . . . . . . . . . 2 2 . 1 . Misfires 2 | . . . . . . . . . 1 . . 1 . Alerts 3 | . . . . . . . . . 3 . . . . Weapon Failures 1 | . . . . . . . . . 1 . . . . Overload Shots 13 | . . . . . . . . . 13 . . . . Effects 2 | . . . . . . . . . 2 . . . . Energy Bleed 1 | . . . . . . . . . 1 . . . . Heat Surge 1 | . . . . . . . . . 1 . . . . Overflow Damage 484 | . . 33 . . . 36 111 21 139 85 . . 59 Projectiles 108 | . . . . . . . . . 23 85 . . . Explosions 245 | . . 33 . . . 16 . 21 116 . . . 59 Melee 131 | . . . . . . 20 111 . . . . . . Knockbacks 5 | . . . . . . . . . 1 . . . 4 Impact . | . . . . . . . . . . . . . . Kinetic 5 | . . . . . . . . . 1 . . . 4 Secondary . | . . . . . . . . . . . . . . Self-Inflicted Damage 329 | . 83 56 . 11 . 31 . 63 19 . 35 . 31 Shots 15 | . 3 3 . 1 . 1 . 2 1 . 3 . 1 Rammed . | . . . . . . . . . . . . . . Targets Rammed 3 | . 2 . . . . . . . 1 . . . . Kicked 3 | . 2 . . . . . . . 1 . . . . Crushed . | . . . . . . . . . . . . . . Highest Temperature 558 | . 2 20 53 72 36 137 98 288 339 258 287 76 558 Average Temperature 81 | . 2 5 13 18 13 45 32 48 79 114 83 36 209 Received Heat Transfer 3148 | . 99 242 252 355 12 279 351 513 271 . 42 . 732 Effects 19 | . . . . . . . . . 2 1 3 . 13 Shutdowns 3 | . . . . . . . . . . . . . 3 Energy Bleed 6 | . . . . . . . . . 2 1 . . 3 Interference 6 | . . . . . . . . . . . 3 . 3 Matter Decay 2 | . . . . . . . . . . . . . 2 Damage (minor) 1 | . . . . . . . . . . . . . 1 Damage (core) 1 | . . . . . . . . . . . . . 1 Siege Activations . | . . . . . . . . . . . . . . Robots Corrupted 4 | . . . . . . . . . . . 2 . 2 Combat Hostiles 4 | . . . . . . . . . . . 2 . 2 Parts Fried 11 | . . . . . . 3 . . 2 . 2 . 4 Impact Corruptions 5 | . . . . . . 2 3 . . . . . . Robots Melted . | . . . . . . . . . . . . . . Combat Hostiles . | . . . . . . . . . . . . . . Parts Melted 16 | . . . . . 3 3 . 6 4 . . . . Heat Transferred 4924 | . . . . . 333 814 . 1584 1642 450 . . 101 Parts Sabotaged . | . . . . . . . . . . . . . . Parts Stolen . | . . . . . . . . . . . . . . Parts Stripped . | . . . . . . . . . . . . . . Power Chain Reactions 1 | . . . . . . . . . 1 . . . . Alert | -11 -10 -10 -9 -9 -9 -8 -8 -8 -7 -7 -7 -7 -7 ------- Run | Yrd Mat Min Mat Sto Gar Mat Gar Mat Fac Low Low Zio Dee Peak Influence 820 | 10 173 259 197 381 820 634 762 623 331 . . . . Initial 399 | . 6 40 20 33 247 399 366 371 42 . . . . Average 237 | 8 75 145 83 127 617 496 601 301 153 . . . . Maximum Alert Level 3 | . . 1 . 1 3 2 3 2 1 . . . . Low Security (%) 58 | 100 100 53 100 78 . . . 42 72 . . . . Level 1 16 | . . 46 . 21 26 4 6 15 27 . . . . Level 2 20 | . . . . . 26 95 68 42 . . . . . Level 3 3 | . . . . . 47 . 24 . . . . . . Level 4 . | . . . . . . . . . . . . . . Level 5 . | . . . . . . . . . . . . . . High Security . | . . . . . . . . . . . . . . Max Security . | . . . . . . . . . . . . . . Squads Dispatched 17 | . 1 . . 2 . 1 . 4 9 . . . . Investigation 5 | . 1 . . 1 . 1 . 1 1 . . . . Extermination 7 | . . . . . . . . . 7 . . . . Reinforcement 5 | . . . . 1 . . . 3 1 . . . . Assault . | . . . . . . . . . . . . . . Garrison . | . . . . . . . . . . . . . . Intercept . | . . . . . . . . . . . . . . Searches Triggered . | . . . . . . . . . . . . . . Construction Impeded 2 | . . . . . . . . 1 1 . . . . Haulers Reinforced . | . . . . . . . . . . . . . . Active Scanning Responses . | . . . . . . . . . . . . . . Cargo Convoy Interrupts . | . . . . . . . . . . . . . . Stealth | -11 -10 -10 -9 -9 -9 -8 -8 -8 -7 -7 -7 -7 -7 --------- Run | Yrd Mat Min Mat Sto Gar Mat Gar Mat Fac Low Low Zio Dee Distress Signals 18 | . 2 . 1 3 . 3 . 7 2 . . . . Communications Jammed . | . . . . . . . . . . . . . . Distress Signals . | . . . . . . . . . . . . . . Times Spotted 237 | . 23 23 20 24 18 23 13 53 27 2 7 . 4 Peak Tracking Total 12 | . 6 12 5 4 3 6 4 7 4 1 4 . 3 Tactical Retreats 9 | . 2 1 . . 2 . 2 1 . . . . 1 Traps | -11 -10 -10 -9 -9 -9 -8 -8 -8 -7 -7 -7 -7 -7 ------- Run | Yrd Mat Min Mat Sto Gar Mat Gar Mat Fac Low Low Zio Dee Traps Triggered 8 | . . . . 1 1 1 . 2 3 . . . . Indirectly . | . . . . . . . . . . . . . . Trap Hack Attempts . | . . . . . . . . . . . . . . Triggered . | . . . . . . . . . . . . . . Disarmed . | . . . . . . . . . . . . . . Reprogrammed . | . . . . . . . . . . . . . . Reused . | . . . . . . . . . . . . . . Traps Extracted . | . . . . . . . . . . . . . . Installed . | . . . . . . . . . . . . . . Triggered 1 | . . . . . . . . . . . 1 . . Machines | -11 -10 -10 -9 -9 -9 -8 -8 -8 -7 -7 -7 -7 -7 ---------- Run | Yrd Mat Min Mat Sto Gar Mat Gar Mat Fac Low Low Zio Dee Machines Disabled 10 | . 2 1 . . 1 . . 1 4 . . . 1 Max in Single Turn 1 | . 1 1 . . 1 . . 1 1 . . . 1 Garrison Access 1 | . . . . . . . . 1 . . . . . Machines Repaired . | . . . . . . . . . . . . . . Machines Dismantled 7 | . . . . 4 . . . . . . . 3 . Machines Sabotaged . | . . . . . . . . . . . . . . Overloaded Fab Kills . | . . . . . . . . . . . . . . Hacking | -11 -10 -10 -9 -9 -9 -8 -8 -8 -7 -7 -7 -7 -7 --------- Run | Yrd Mat Min Mat Sto Gar Mat Gar Mat Fac Low Low Zio Dee Machines Accessed 51 | . 7 . 3 7 4 4 2 13 10 . . 1 . Terminals 37 | . 6 . 3 5 4 3 2 10 4 . . . . Fabricators 2 | . . . . . . . . . 2 . . . . Repair Stations 4 | . . . . 1 . . . 2 1 . . . . Recycling Units 2 | . 1 . . . . . . . 1 . . . . Scanalyzers . | . . . . . . . . . . . . . . Garrison Access 5 | . . . . 1 . 1 . 1 2 . . . . Total Hacks 145 | . 25 . 9 22 5 8 3 40 25 . . 8 . Successful 67 | . 12 . 5 9 4 2 1 14 12 . . 8 . Failed 77 | . 12 . 4 13 1 6 2 26 13 . . . . Catastrophic 13 | . . . . 1 1 1 . 6 4 . . . . Database Lockouts 1 | . 1 . . . . . . . . . . . . Manual 67 | . 13 . 6 12 . 4 . 19 13 . . . . Terminals 106 | . 24 . 9 17 5 5 3 33 10 . . . . Fabricators 5 | . . . . . . . . . 5 . . . . Repair Stations 9 | . . . . 3 . . . 4 2 . . . . Recycling Units 6 | . 1 . . . . . . . 5 . . . . Scanalyzers . | . . . . . . . . . . . . . . Garrison Access 11 | . . . . 2 . 3 . 3 3 . . . . Terminal Hacks 37 | . 9 . 4 3 4 . 1 8 . . . 8 . Record 1 | . 1 . . . . . . . . . . . . Part Schematic 9 | . . . 1 . . . . . . . . 8 . Robot Analysis 2 | . 1 . 1 . . . . . . . . . . Prototype ID Bank 3 | . 2 . . . . . . 1 . . . . . Open Door 2 | . . . . 1 1 . . . . . . . . Branch Access Points 1 | . . . 1 . . . . . . . . . . Emergency Access Points 2 | . . . . . 1 . 1 . . . . . . Alert Level 1 | . . . . . . . . 1 . . . . . Unreport Threat 8 | . 1 . . 2 . . . 5 . . . . . Locate Traps 2 | . 1 . 1 . . . . . . . . . . Dispatch Records 1 | . 1 . . . . . . . . . . . . Hauler Manifests 1 | . 1 . . . . . . . . . . . . Registered Components 1 | . . . . . . . . 1 . . . . . Zone Layout 1 | . 1 . . . . . . . . . . . . Garrison Registry 1 | . . . . . 1 . . . . . . . . Security Stations 1 | . . . . . 1 . . . . . . . . Fabricator Hacks 4 | . . . . . . . . . 4 . . . . Network Status 2 | . . . . . . . . . 2 . . . . Load Schematic 1 | . . . . . . . . . 1 . . . . Build 1 | . . . . . . . . . 1 . . . . Repair Station Hacks 5 | . . . . 2 . . . 2 1 . . . . Scan Component 3 | . . . . 1 . . . 1 1 . . . . Repair 2 | . . . . 1 . . . 1 . . . . . Recycling Unit Hacks 2 | . . . . . . . . . 2 . . . . Retrieve Matter 1 | . . . . . . . . . 1 . . . . Retrieve Components 1 | . . . . . . . . . 1 . . . . Scanalyzer . | . . . . . . . . . . . . . . Garrison Access Hacks 3 | . . . . 1 . 1 . 1 . . . . . Unlock Access 2 | . . . . 1 . 1 . . . . . . . Seal Access 1 | . . . . . . . . 1 . . . . . Unauthorized Hacks 16 | . 3 . 1 3 . 1 . 3 5 . . . . Terminals 13 | . 2 . 1 3 . 1 . 3 3 . . . . Botnet 13 | . 2 . 1 3 . 1 . 3 3 . . . . Fabricators . | . . . . . . . . . . . . . . Repair Stations . | . . . . . . . . . . . . . . Recycling Units 3 | . 1 . . . . . . . 2 . . . . Recyclers 1 | . . . . . . . . . 1 . . . . Mask 1 | . . . . . . . . . 1 . . . . Tunnel 1 | . 1 . . . . . . . . . . . . Scanalyzers . | . . . . . . . . . . . . . . Garrison Access . | . . . . . . . . . . . . . . Data Cores Recovered 1 | . . . . . . 1 . . . . . . . Used 1 | . . . . . . 1 . . . . . . . Hacking Detections 41 | . 6 . 3 5 1 4 1 11 10 . . . . Full Trace Events 3 | . . . . . 1 . . 1 1 . . . . Feedback Events . | . . . . . . . . . . . . . . Feedback Blocked . | . . . . . . . . . . . . . . Robot Schematics Acquired . | . . . . . . . . . . . . . . Robots Built . | . . . . . . . . . . . . . . Authchips . | . . . . . . . . . . . . . . Time . | . . . . . . . . . . . . . . Total Robot Build Rating . | . . . . . . . . . . . . . . Part Schematics Acquired 9 | . . . 1 . . . . . . . . 8 . Parts Built 1 | . . . . . . . . . 1 . . . . Authchips . | . . . . . . . . . . . . . . Time 51 | . . . . . . . . . 51 . . . . Total Part Build Rating 1 | . . . . . . . . . 1 . . . . Parts Repaired 2 | . . . . 1 . . . 1 . . . . . Time 70 | . . . . 26 . . . 44 . . . . . Parts Recycled . | . . . . . . . . . . . . . . Recycled Matter . | . . . . . . . . . . . . . . Retrieved Matter 140 | . . . . . . . . . 140 . . . . Retrieved Components 9 | . . . . . . . . . 9 . . . . Parts Scanalyzed . | . . . . . . . . . . . . . . Part Schematics Acquired . | . . . . . . . . . . . . . . Parts Damaged . | . . . . . . . . . . . . . . Bothacking | -11 -10 -10 -9 -9 -9 -8 -8 -8 -7 -7 -7 -7 -7 ------------ Run | Yrd Mat Min Mat Sto Gar Mat Gar Mat Fac Low Low Zio Dee Used RIF Installer . | . . . . . . . . . . . . . . Robots Hacked . | . . . . . . . . . . . . . . Non-combat . | . . . . . . . . . . . . . . Combat . | . . . . . . . . . . . . . . Robot Hacks Applied . | . . . . . . . . . . . . . . Relay Couplers Released . | . . . . . . . . . . . . . . Fabnet Peak Effective % . | . . . . . . . . . . . . . . Robots Rewired . | . . . . . . . . . . . . . . Allies Hacked . | . . . . . . . . . . . . . . Hacks Repelled . | . . . . . . . . . . . . . . Allies | -11 -10 -10 -9 -9 -9 -8 -8 -8 -7 -7 -7 -7 -7 -------- Run | Yrd Mat Min Mat Sto Gar Mat Gar Mat Fac Low Low Zio Dee Total Allies 11 | . . . . 10 1 . . . . . . . . Largest Group 10 | . . . . 10 8 4 . . . . . . . Highest-Rated Group 89 | . . . . 88 89 49 . . . . . . . Highest-Rated Ally 25 | . . . . 16 25 25 . . . . . . . Total Orders 2 | . . . . . . 2 . . . . . . . EXPLORE 2 | . . . . . . 2 . . . . . . . Ally Attacks 127 | . . . . 66 57 4 . . . . . . . Total Damage 1214 | . . . . 565 596 53 . . . . . . . Kills 19 | . . . . 8 11 . . . . . . . . Allies Corrupted . | . . . . . . . . . . . . . . Allies Melted . | . . . . . . . . . . . . . . Intel | -11 -10 -10 -9 -9 -9 -8 -8 -8 -7 -7 -7 -7 -7 ------- Run | Yrd Mat Min Mat Sto Gar Mat Gar Mat Fac Low Low Zio Dee Robot Analysis Total 2 | . 1 . 1 . . . . . . . . . . Derelict Logs Recovered 5 | . . 2 . . . . . . . 2 1 . . Drone Launches 2 | . . . . . . 2 . . . . . . . Drone Recoveries 1 | . . . . . . 1 . . . . . . . Exploration | -11 -10 -10 -9 -9 -9 -8 -8 -8 -7 -7 -7 -7 -7 ------------- Run | Yrd Mat Min Mat Sto Gar Mat Gar Mat Fac Low Low Zio Dee Turns Passed 15416 | 48 1054 652 1177 1153 509 739 648 2233 2575 585 748 1698 1597 Spaces Moved 7716 | 30 483 373 596 488 285 321 297 1096 1544 345 405 964 489 Core 20 | . . . . . . . . . . . . . 20 Treads 3266 | . . 335 596 488 285 321 297 944 . . . . . Legs 4392 | 30 483 . . . . . . 152 1544 345 405 964 469 Wheels 38 | . . 38 . . . . . . . . . . . Hover . | . . . . . . . . . . . . . . Flight . | . . . . . . . . . . . . . . Fastest Speed 50 | 120 120 110 160 160 160 160 160 130 127 127 127 127 50 Average Speed 165 | 120 177 154 160 160 160 160 160 167 139 134 175 165 270 Slowest Speed 540 | 120 190 160 160 160 160 160 160 270 200 197 197 197 540 Overloaded Moves . | . . . . . . . . . . . . . . Propulsion Burnouts . | . . . . . . . . . . . . . . Robots Hopped . | . . . . . . . . . . . . . . Cave-ins Triggered . | . . . . . . . . . . . . . . Exploration Rate (%) 58 | 2 96 65 51 76 49 39 43 85 53 55 62 85 58 Regions Visited 13 Branch Regions 6 Pre-discovered Areas 6 | . 1 . . 1 . . . . . 1 . 3 . Known Exits Taken 6 | . . . 1 1 . 1 . . 1 1 1 . . Unknown Exits Taken 5 | 1 1 1 . . . . . 1 . . . 1 . Scrap Searched 12 | . . . . . . . . . . 1 8 3 . Spaces Dug 117 | . 30 13 2 10 1 1 2 8 28 15 2 . 5 Terrain Destroyed 358 | . 49 52 9 23 1 45 10 42 78 21 2 1 25 Melee 7 | . . . 2 . 1 1 2 1 . . . . . Projectile 85 | . . . . . . . . 9 45 21 2 1 7 AOE 266 | . 49 52 7 23 . 44 8 32 33 . . . 18 Terrain Rammed . | . . . . . . . . . . . . . . Walls Destroyed . | . . . . . . . . . . . . . . Machines Disabled . | . . . . . . . . . . . . . . Actions | -11 -10 -10 -9 -9 -9 -8 -8 -8 -7 -7 -7 -7 -7 --------- Run | Yrd Mat Min Mat Sto Gar Mat Gar Mat Fac Low Low Zio Dee Total 9426 | 36 610 416 744 722 308 445 391 1368 1824 437 431 1016 678 Wait 557 | . 62 14 50 85 5 8 9 75 84 61 . 3 101 Move 7701 | 29 482 372 595 487 282 320 296 1095 1543 344 404 963 489 Hop . | . . . . . . . . . . . . . . Pick Up 100 | 3 9 2 15 12 . 13 4 19 13 . 1 6 3 Fast Attach 67 | . 1 . 2 7 . 6 3 15 14 . 4 4 11 Attach 26 | 1 . 2 5 . . 5 . 2 2 . . 3 6 Detach 14 | . 1 . 1 . . 1 . 1 3 . 1 5 1 Swap 159 | . 11 7 14 24 5 7 12 25 36 2 6 2 8 Drop 157 | . 6 . 18 28 . 15 6 35 34 . 5 3 7 Fire 545 | 3 36 19 38 53 10 68 48 100 94 30 10 . 36 Melee 28 | . . . 6 . 6 2 13 1 . . . . . Ram . | . . . . . . . . . . . . . . Kick 3 | . 2 . . . . . . . 1 . . . . Crush . | . . . . . . . . . . . . . . Escape Stasis . | . . . . . . . . . . . . . . Rewire 2 | . . . . 2 . . . . . . . . . Trap . | . . . . . . . . . . . . . . Miscellaneous 67 | . . . . 24 . . . . . . . 27 16 Route ------- -11/Scrapyard -10/Materials (discovered 4 exits: *Mat x3 / [*Min]) -10/Mines (discovered 2 exits: *Mat x2) -9/Materials (discovered 5 exits: *Mat / *Min x2 / *Sto x2) -9/Storage (discovered 2 exits: Rec / Gar) -9/Garrison (discovered 3 exits: *Mat x3) -8/Materials (discovered 2 exits: *Fac / Gar) -8/Garrison -8/Materials (discovered 2 exits: *Fac x2) -7/Factory (discovered 4 exits: *Fac x3 / *Low) -7/Lower Caves -7/Lower Caves -7/Zion (discovered 2 exits: [*Dee] / [*Pro]) -7/Deep Caves (discovered 1 exit: [*Pro]) History --------- Turn | Location | Event 1 | -11/Scrapyard | Discovered new exit (range 3) 49 | -11/Scrapyard | Entered Materials 248 | -10/Materials | Discovered new exit (range 15) 305 | -10/Materials | Build established: Mutant 387 | -10/Materials | Discovered new exit (range 9) 399 | -10/Materials | Central database locked down 699 | -10/Materials | Discovered new exit (range 13) 746 | -10/Materials | Discovered new exit (range 16) 1103 | -10/Materials | Entered Mines 1174 | -10/Mines | Learned 4 Materials zone layouts 1225 | -10/Mines | Discovered new exit (range 8) 1497 | -10/Mines | Discovered new exit (range 6) 1616 | -10/Mines | Found a hidden stash of uninstalled traps 1678 | -10/Mines | Assembled infested the area 1683 | -10/Mines | Assisted by a Guerilla fighting off Assembled 1731 | -10/Mines | Destroyed 8 combat bots 1755 | -10/Mines | Entered Materials 1755 | -9/Materials | Evolved 2 slots: Propulsion x1, Utility x1 1756 | -9/Materials | Identified exit to Mines 1948 | -9/Materials | Identified exit to Storage 2208 | -9/Materials | Discovered new exit (range 15) 2266 | -9/Materials | Build established: Scavenger-Mutant 2932 | -9/Materials | Entered Storage 2933 | -9/Storage | Identified exit to Recycling 3191 | -9/Storage | Learned location of Armory (-4) 3297 | -9/Storage | Repaired Lgt. Armor Plating 3809 | -9/Storage | Assisted by bots powering up and referring to "LRC-V3" 4084 | -9/Storage | Identified exit to Garrison 4085 | -9/Storage | Entered Garrison 4085 | -9/Garrison | Accompanied by 7 allies 4098 | -9/Garrison | Rescued a captive Derelict 4116 | -9/Garrison | Build established: Commander-Mutant 4145 | -9/Garrison | Triggered checkpoint 4221 | -9/Garrison | Discovered new exit (range 33) 4221 | -9/Garrison | Discovered new exit (range 55) 4221 | -9/Garrison | Discovered new exit (range 61) 4275 | -9/Garrison | Triggered checkpoint 4347 | -9/Garrison | Triggered checkpoint 4432 | -9/Garrison | Attempted to access garrison exit controls, blocked by remote lockdown 4569 | -9/Garrison | Build established: Mutant 4584 | -9/Garrison | Learned Materials security intel 4594 | -9/Garrison | Entered Materials 4594 | -8/Materials | Accompanied by 4 allies 4594 | -8/Materials | Evolved 2 slots: Propulsion x1, Utility x1 4684 | -8/Materials | Lost 4 allies 4789 | -8/Materials | Lost 3 parts (1n2u) 4868 | -8/Materials | Discovered new exit (range 26) 4946 | -8/Materials | Lost 3 parts (1p1n1u) 5331 | -8/Materials | Identified exit to Garrison 5333 | -8/Materials | Entered Garrison 5369 | -8/Garrison | Triggered checkpoint 5487 | -8/Garrison | Triggered checkpoint 5628 | -8/Garrison | Discovered new exit (range 12) 5811 | -8/Garrison | Triggered checkpoint 5981 | -8/Garrison | Entered Materials 6046 | -8/Materials | Repaired Med. Treads? 7069 | -8/Materials | Discovered new exit (range 11) 7266 | -8/Materials | Discovered new exit (range 13) 8214 | -8/Materials | Entered Factory 8214 | -7/Factory | Evolved 2 slots: Power x1, Utility x1 8560 | -7/Factory | Fabricated Hcp. Storage Unit (x1) 9009 | -7/Factory | Discovered new exit (range 9) 9032 | -7/Factory | Identified exit to Factory 9816 | -7/Factory | Discovered exit to Factory (range 5) 10644 | -7/Factory | Discovered exit to Factory (range 15) 10775 | -7/Factory | Discovered new exit (range 11) 10788 | -7/Factory | Identified exit to Lower Caves 10789 | -7/Factory | Entered Lower Caves 10861 | -7/Lower Caves | Learned location of Zion (-7) 10895 | -7/Lower Caves | Learned Factory interactive machine intel 11339 | -7/Lower Caves | Discovered new exit (range 4) 11345 | -7/Lower Caves | Identified exit to Lower Caves 11374 | -7/Lower Caves | Entered another Lower Caves area 11623 | -7/Lower Caves | Attracted the attention of an 0b10 checkpoint 11797 | -7/Lower Caves | Encountered a Warlord checkpoint 11880 | -7/Lower Caves | Discovered new exit (range 15) 12036 | -7/Lower Caves | Learned Factory stockpile data 12101 | -7/Lower Caves | Identified exit to Zion 12122 | -7/Lower Caves | Entered Zion 12205 | -7/Zion | System corruption cleaned by Quarantine Array 12321 | -7/Zion | Discovered new exit (range 13) 12852 | -7/Zion | Given the Hacking Drone Bay 13197 | -7/Zion | Found Prototype Special Weapon 13197 | -7/Zion | Identified RU-N14's Throwing Claymores 13200 | -7/Zion | Found RU-N14's Throwing Claymores 13203 | -7/Zion | Found RU-N14's Throwing Claymores 13206 | -7/Zion | Found RU-N14's Throwing Claymores 13647 | -7/Zion | Discovered new exit (range 3) 13647 | -7/Zion | Saw the warning signs outside the Deep Caves entrance 13739 | -7/Zion | Found Prototype Device 13820 | -7/Zion | Entered Deep Caves 13971 | -7/Deep Caves | Attacked by Z-Imprinter 13974 | -7/Deep Caves | Z-Facility disabled 13998 | -7/Deep Caves | Core integrity fell below 50% 14040 | -7/Deep Caves | Core integrity fell below 20% 14047 | -7/Deep Caves | Destroyed Z-Imprinter 14067 | -7/Deep Caves | Lost 13 parts (1p5n7u) 14129 | -7/Deep Caves | Found Prototype Protection 14129 | -7/Deep Caves | Identified Zio. Weapon Casing 14147 | -7/Deep Caves | Found Zio. Weapon Casing 14530 | -7/Deep Caves | Build established: Scavenger-Mutant 14732 | -7/Deep Caves | Discovered new exit (range 6) 15169 | -7/Deep Caves | Spotted AG-39259 15318 | -7/Deep Caves | Destroyed AG-39259 15319 | -7/Deep Caves | Released all parts (7) 15324 | -7/Deep Caves | Found GOLEM Unit 15418 | -7/Deep Caves | Core destroyed Last Messages --------------- 15315_ Destroyed Flamer. 15318_ AG-39259 system terminally corrupted. 15319_ Released Zio. Light DM Reactor. 15319_ Released Zio. Weapon Casing. 15319_ Released Exp. Heat Sink. 15319_ Released Zio. Light DM Reactor. 15319_ Released Zio. Weapon Casing. 15319_ Released Com. Battery. 15319_ Released Hvy. Shock Bomb Launcher. 15319_ Extracted 1 energy. 15321_ Acquired 61 matter. 15324_ Acquired GOLEM Unit. 15325_ GOLEM Unit beginning Asb. Alloy Leg integration. 15325_ Acquired 118 matter. 15329_ Extracted 4 energy. 15330_ Acquired Zio. Light DM Reactor. 15376_ Overheating: System interference. 15376_ GOLEM Unit temporarily disabled. 15401_ Overheating: Energy bleed (-25). 15418_ Overheating: Core damaged (-126). Map ----- +----------------------------------------------------+ | ????????????? ### ???????##### | | ????????????? # ??????## | | ????????????? #?????# ## | | ???????????? ?????# #### | | ???????????? ?????## ##??# | | ??????????? = ! ??????## ##??# | | ???????????/ / = ##?????## ##?# | | ??????????? = #?????## #?# | | ??????????? = #????## #####?#* | | ????????? #??### ##?????# ]# | | ???????? ! #?## #??????#!!# | | ????????" [ #?# #????### !# | | ????????" [ ! ### ######]]]! | | ????????" [[ ! ## |]| ## ! / ] | | ????????" [ M ## ""< #|## | | ???????"" * b # #"########? | | ???????# [ [ * # #######???????? | | ???????" h * ## ##????????????? | | ???????" ## #????????????? | | ???????" #????????????? | | ???????""" [ [ * #????????????? | | ???????" # #????????????? | | ????????" ;##### ??????????? | | ???????" #???? ???????? | | ???????"" * ! ]##???? ######??????? | | ???????" " #!@!;#????# #???????????? | | ???????" #### ## ##!###?????# #???????????? | | ???????""" ##???# "" ####????????###???????????? | | ????????" ?????#### #?????????????????????????? | | ????????####?????????###?????????????????????????? | | | | | | | | | | | | | | | | | | | | | | | | | | | | | | | | | | | | | | | | | +----------------------------------------------------+ Best States ------------- Heat Dissipation 60 Energy Generation 49 Energy Capacity 500 Matter Stores 500 Matter Capacity 500 Sight Range 16 Robot Scan Range 15 Terrain Scan Density 10 Jamming Range 14 Corruption Block 8 Armor Coverage 600 Resistance: KI 30 Resistance: TH 15 Weapon Shielding 100 Evasion (%) 55 Targeting Accuracy 8 Recoil Reduction 4 Offensive Hacking 10 Item Schematics ----------------- Hcp. Storage Unit | -9/Materials | Hacked Hvy. Beamcaster | -7/Zion | Free Riot Gun | -7/Zion | Free Barrage Gun | -7/Zion | Free Battle Cannon | -7/Zion | Free Flamer | -7/Zion | Free Enh. Flamer | -7/Zion | Free Ripper | -7/Zion | Free Phasing Sabre | -7/Zion | Free Robot Schematics ------------------ None Fabricated ------------ Hcp. Storage Unit | x1 | -7/Factory Alien Tech Used ----------------- None Achievements -------------- Treasure Hunter Challenges ------------ None Game ------ Seed PropulsionXenonStabilizer Manual? 0 Play Time 02:02:36 Cumulative 169.5 hours Start 2024.05.05 @ 19:20:45 End 2024.05.05 @ 21:38:18 Sessions 1 Manual Loads 0 Difficulty Rogue Special Mode None Game No. 144 Rogue 144 Adventurer 0 Explorer 0 Win Type - Total 3 Types 2/0/0/1/0/0/0/0/0 Lore% 57 Gallery% 76 Achievement% 59 Wizard Run 0 Options --------- Layout 2 ASCII 0 Keyboard 1 Movement Numpad Keybinds 0 Fullscreen 1 Font 32/SmallcapsGlow Map View 77x44 Zoom Use 0% Tactical HUD 1 Map Filters NONE Filters NONE Steam 1 RUN: 7c5369d9-e519-4dc4-8234-5f740b2d75b2